bitfinex-derivatives/quotes_SOLF0:USTF0_20250919
["timestamp","ask_amount","ask_price","bid_price","bid_amount"]
[1758254866129,0.03018547,243.62,243.55,3.6935]
[1758254866327,0.03018547,243.62,243.57,3.6933]
[1758254866526,0.03018547,243.62,243.54,23.19622509]
[1758254866527,1.36896629,243.59,243.55,6.74]
[1758254866728,1.36896629,243.59,243.54,23.19622509]
[1758254866928,1.36896629,243.59,243.54,128.11622509]
[1758254867342,1.36896629,243.59,243.55,6.74]
[1758254867741,0.03018547,243.62,243.55,6.74]
[1758254867936,1.36896629,243.6,243.56,105.12]
[1758254868132,1.36896629,243.6,243.57,6.74]
[1758254869239,0.03018547,243.62,243.57,6.74]
[1758254869439,0.03018547,243.62,243.57,1.36896629]
[1758254869639,0.03018547,243.62,243.61,6.74]
[1758254869934,7.91896629,243.72,243.65,6.74]
[1758254869935,0.15286,243.72,243.65,6.74]
[1758254870139,1.36896629,243.67,243.65,6.74]
[1758254870342,1.36896629,243.67,243.64,76.04]
[1758254870542,1.36896629,243.67,243.63,76.04]
[1758254870943,1.36896629,243.67,243.6,6.74]
[1758254871152,1.36896629,243.67,243.61,105.6]
[1758254871543,1.36896629,243.7,243.62,105.6]
[1758254871847,0.15286,243.72,243.63,6.74]
[1758254872544,2.14359077,243.7,243.63,6.74]
[1758254872845,2.14359077,243.71,243.64,105.6]
[1758254873140,0.0258212,243.69,243.64,105.6]
[1758254873546,0.0258212,243.69,243.64,109.2922]
[1758254874247,0.0258212,243.69,243.66,3.6919]
[1758254874451,0.0258212,243.69,243.66,6.74]
[1758254874644,0.0258212,243.69,243.68,6.74]
[1758254875143,0.15286,243.72,243.68,59.98829077]
[1758254875348,6.55,243.84,243.71,2.14359077]
[1758254875544,6.55,243.84,243.72,6.94]
[1758254875739,6.55,243.84,243.73,105.5]
[1758254875945,8.63359077,243.88,243.75,2.14359077]
[1758254876550,8.63359077,243.88,243.79,0.02993567]
[1758254879146,6.49,243.88,243.79,0.02993567]
[1758254879349,7.01,243.82,243.79,0.02993567]
[1758254879756,7.01,243.82,243.76,58.04]
[1758254880250,7.01,243.82,243.78,0.02657148]
[1758254880448,7.01,243.88,243.78,0.02657148]
[1758254880846,7.01,243.88,243.76,60.18359077]
[1758254881245,7.01,243.88,243.81,0.02655724]
[1758254881442,7.01,243.93,243.81,0.02655724]
[1758254881843,7.01,243.93,243.82,46.88]
[1758254882051,7.01,243.93,243.83,6.91]
[1758254882254,7.01,243.93,243.85,0.02596851]
[1758254882654,7.01,243.93,243.85,85.92596851]
[1758254882953,9.15359077,243.93,243.85,0.02596851]
[1758254883249,7.01,243.86,243.85,0.02596851]
[1758254883445,2.14359077,243.99,243.85,0.02596851]
[1758254883446,2.14359077,243.9,243.85,0.02596851]
[1758254883652,7.01,243.86,243.85,0.02596851]
[1758254884250,7.43,243.86,243.85,0.02596851]
[1758254884651,7.01,243.85,243.73,6.91]
[1758254884857,2.14359077,243.8,243.66,12.74539077]
[1758254885058,2.14359077,243.8,243.66,9.05359077]
[1758254885248,2.14359077,243.8,243.66,6.91]
[1758254885550,2.14359077,243.8,243.67,105.4]
[1758254885951,9.15359077,243.81,243.66,6.91]
[1758254886155,9.15359077,243.77,243.66,6.91]
[1758254886356,9.15359077,243.77,243.67,105.4]
[1758254886551,9.15359077,243.77,243.66,6.91]
[1758254886756,2.14359077,243.74,243.66,105.38]
[1758254886954,2.14359077,243.74,243.65,310.24]
[1758254887150,2.14359077,243.81,243.65,310.24]
[1758254887151,2.14359077,243.71,243.65,310.24]
[1758254887355,2.14359077,243.71,243.56,9.05359077]
[1758254887655,2.14359077,243.68,243.57,100.32]
[1758254888155,7.01,243.69,243.57,100.32]
[1758254888564,2.14359077,243.71,243.58,6.91]
[1758254889050,2.14359077,243.71,243.59,2.14359077]
[1758254889455,2.14359077,243.71,243.58,6.91]
[1758254890863,2.14359077,243.71,243.58,9.05359077]
[1758254892163,7.01,243.73,243.58,6.91]
[1758254892664,2.14359077,243.72,243.58,9.05359077]
[1758254892961,7.01,243.73,243.62,6.91]
[1758254893860,7.01,243.73,243.63,3.6924]
[1758254894162,7.01,243.73,243.62,6.91]
[1758254894561,7.01,243.73,243.62,10.6025]
[1758254894756,7.01,243.78,243.64,2.14359077]
[1758254894965,7.01,243.78,243.65,6.91]
[1758254895268,2.14359077,243.9,243.64,2.14359077]
[1758254895269,2.14359077,243.82,243.68,6.91]
[1758254895461,2.14359077,243.82,243.7,2.14359077]
[1758254895659,2.14359077,243.82,243.71,53.12]
[1758254896563,7.01,243.84,243.72,6.91]
[1758254896861,7.01,243.84,243.72,10.601]
[1758254897162,7.01,243.84,243.72,6.91]
[1758254897362,7.01,243.84,243.73,93.3]
[1758254897564,2.14359077,243.82,243.72,46.65]
[1758254897759,7.01,243.81,243.65,2.14359077]
[1758254897964,2.14359077,243.8,243.69,74.64]
[1758254898661,2.14359077,243.8,243.7,6.91]
[1758254898862,2.14359077,243.9,243.7,6.91]
[1758254898863,2.14359077,243.83,243.71,2.14359077]
[1758254899163,7.01,243.85,243.71,2.14359077]
[1758254899561,7.01,243.85,243.72,6.91]
[1758254900059,7.01,243.85,243.72,10.601]
[1758254900466,7.01,243.85,243.74,2.14359077]
[1758254900968,7.01,243.85,243.72,9.05359077]
[1758254901164,7.01,243.85,243.72,114.01359077]
[1758254901968,7.01,243.82,243.68,2.14359077]
[1758254902274,7.01,243.79,243.68,2.14359077]
[1758254903165,7.01,243.79,243.71,2.14359077]
[1758254904167,7.01,243.79,243.69,72.24]
[1758254904365,7.01,243.79,243.68,2.14359077]
[1758254904671,7.01,243.79,243.69,103.28]
[1758254904970,7.01,243.83,243.71,2.14359077]
[1758254905767,7.01,243.83,243.74,2.14359077]
[1758254906865,7.01,243.92,243.74,2.14359077]
[1758254907168,7.01,243.88,243.74,2.14359077]
[1758254907470,7.01,243.88,243.77,2.14359077]
[1758254909474,7.01,243.88,243.78,89.92]
[1758254909773,7.01,243.88,243.78,92.06359077]
[1758254910176,7.01,243.88,243.81,2.14359077]
[1758254910475,7.01,243.88,243.78,89.92]
[1758254910775,7.01,243.88,243.8,2.14359077]
[1758254911775,7.01,243.88,243.78,89.92]
[1758254912473,7.01,243.88,243.78,92.06359077]
[1758254914477,7.01,243.88,243.81,2.14359077]
[1758254916072,7.01,243.88,243.78,92.06359077]
[1758254917977,7.01,243.88,243.78,89.92]
[1758254918478,7.01,243.88,243.79,7.02]
[1758254918879,2.14359077,243.87,243.76,2.14359077]
[1758254919082,2.14359077,243.87,243.77,7.02]
[1758254919281,7.01,243.88,243.77,10.7103]
[1758254921278,2.14359077,243.89,243.77,7.02]
[1758254921483,2.14359077,243.83,243.73,7.02]
[1758254921675,6.69,243.82,243.73,7.02]
[1758254923381,8.83359077,243.82,243.73,7.02]
[1758254924386,6.69,243.82,243.73,7.02]
[1758254925983,2.14359077,243.81,243.73,7.02]
[1758254927586,6.69,243.82,243.73,7.02]
[1758254929489,6.69,243.82,243.73,9.16359077]
[1758254930190,6.69,243.87,243.75,7.02]
[1758254930390,6.69,243.87,243.76,2.14359077]
[1758254931795,6.69,243.87,243.77,1.37034783]
[1758254932096,1.37034783,243.86,243.77,1.37034783]
[1758254934586,6.69,243.87,243.78,7.02]
[1758254934786,8.06034783,243.87,243.78,7.02]
[1758254934988,6.69,243.87,243.78,7.02]
[1758254935197,8.06034783,243.87,243.78,7.02]
[1758254935991,1.37034783,243.85,243.78,7.02]
[1758254936196,1.37034783,243.81,243.73,1.37034783]
[1758254936394,1.37034783,243.83,243.73,1.37034783]
[1758254936596,1.37034783,243.83,243.75,1.37034783]
[1758254936996,6.97,243.84,243.75,7.84034783]
[1758254937392,6.97,243.84,243.77,1.37034783]
[1758254937590,314.59110545,244.01,243.79,1.37034783]
[1758254937591,1.37034783,243.88,243.79,1.37034783]
[1758254937899,1.37034783,243.88,243.78,6.47]
[1758254937900,6.97,243.89,243.81,1.37034783]
[1758254938095,8.08,243.97,243.75,4.54630364]
[1758254938096,1.37034783,243.84,243.75,4.54630364]
[1758254938402,6.6,243.83,243.74,6.79]
[1758254938889,1.37034783,243.82,243.74,6.79]
[1758254940493,6.6,243.83,243.74,6.79]
[1758254940697,1.37034783,243.82,243.74,6.79]
[1758254940999,1.37034783,243.8,243.74,6.79]
[1758254942095,6.6,243.83,243.74,6.79]
[1758254942295,1.37034783,243.82,243.74,6.79]
[1758254942697,1.37034783,243.86,243.77,1.37034783]
[1758254942995,6.6,243.87,243.79,1.37034783]
[1758254943802,6.6,243.87,243.81,1.37034783]
[1758254944399,6.6,243.87,243.83,1.37034783]
[1758254946901,1.37034783,243.92,243.83,1.37034783]
[1758254947104,1.37034783,243.9,243.82,1.37034783]
[1758254950106,6.6,243.91,243.84,1.37034783]
[1758254951006,6.6,243.91,243.82,4.81897013]
[1758254951306,6.6,243.91,243.83,3.73619533]
[1758254951507,6.6,243.91,243.84,3.73619533]
[1758254951701,6.6,243.91,243.85,3.73619533]
[1758254951902,6.6,243.89,243.86,3.73619533]
[1758254952108,1.37034783,243.9,243.87,3.73619533]
[1758254952309,6.6,243.89,243.82,1.37034783]
[1758254956016,1.37034783,243.88,243.8,11.60897013]
[1758254956214,6.6,243.89,243.82,1.37034783]
[1758254956405,314.59110545,244.01,243.84,1.37034783]
[1758254956710,6.6,243.97,243.86,3.4486223]
[1758254956910,1.37034783,243.96,243.88,1.37034783]
[1758254957903,6.6,243.97,243.9,1.37034783]
[1758254958110,6.6,243.97,243.91,1.37034783]
[1758254958805,6.6,244.09,243.93,1.37034783]
[1758254959006,6.6,244.01,243.92,6.79]
[1758254959208,1.37034783,243.98,243.92,6.79]
[1758254960117,20.38,244.09,243.87,8.16034783]
[1758254960118,1.37034783,243.96,243.87,8.16034783]
[1758254960416,6.6,243.97,243.89,1.37034783]
[1758254961315,1.37034783,243.95,243.87,6.79]
[1758254961508,1.37034783,243.95,243.88,3.65714389]
[1758254961707,1.37034783,243.95,243.89,3.65714389]
[1758254961909,6.6,243.98,243.9,3.65714389]
[1758254962109,6.6,243.98,243.88,1.37034783]
[1758254962110,7.97034783,243.98,243.91,3.65714389]
[1758254962317,6.6,243.98,243.92,3.65714389]
[1758254962511,1.37034783,243.97,243.93,3.65714389]
[1758254962716,1.37034783,243.97,243.94,3.65714389]
[1758254963015,6.6,243.96,243.95,3.65714389]
[1758254963717,0.4,243.96,243.81,11.60897013]
[1758254964021,1.37034783,243.9,243.81,11.60897013]
[1758254964219,6.6,243.91,243.84,6.79]
[1758254964417,6.6,243.95,243.87,1.37034783]
[1758254964618,6.6,243.95,243.87,8.16034783]
[1758254965323,0.02826709,243.93,243.87,8.16034783]
[1758254966024,0.02826709,243.93,243.87,6.79]
[1758254966726,0.02826709,243.93,243.87,8.16034783]
[1758254969220,0.02826709,243.93,243.89,1.37034783]
[1758254969422,0.02826709,243.93,243.92,6.59]
[1758254970731,0.02826709,243.93,243.86,7.96034783]
[1758254971024,0.02826709,243.93,243.86,6.59]
[1758254971225,1.39861492,243.93,243.86,7.96034783]
[1758254971420,0.02826709,243.93,243.86,7.96034783]
[1758254972322,0.02826709,243.93,243.88,1.37034783]
[1758254972723,0.02826709,243.93,243.89,6.59]
[1758254973226,0.02826709,243.93,243.88,1.37034783]
[1758254973426,0.02826709,243.93,243.89,6.59]
[1758254974219,0.02826709,243.93,243.88,6.59]
[1758254974426,0.02826709,243.93,243.87,1.37034783]
[1758254974927,8.48861492,243.93,243.86,6.59]
[1758254975227,1.37034783,243.87,243.79,10.0386223]
[1758254975426,1.37034783,243.85,243.79,10.0386223]
[1758254975630,1.37034783,243.85,243.79,6.59]
[1758254976725,0.02995119,243.84,243.78,1.37034783]
[1758254977230,0.02995119,243.84,243.79,6.59]
[1758254977431,0.02995119,243.84,243.81,6.59]
[1758254977626,0.02995119,243.84,243.83,6.59]
[1758254979225,0.02995119,243.84,243.83,8.38034783]
[1758254979420,7.09,243.96,243.83,7.96034783]
[1758254979626,7.09,243.96,243.9,1.37034783]
[1758254980732,7.09,243.96,243.91,0.0306294]
[1758254980927,7.09,243.98,243.91,0.0306294]
[1758254981525,1.37034783,243.97,243.91,0.0306294]
[1758254981833,7.09,243.92,243.91,0.0306294]
[1758254982227,7.49,243.92,243.91,0.0306294]
[1758254983122,7.09,243.92,243.91,0.0306294]
[1758254983523,7.09,243.92,243.91,3.71626972]
[1758254987037,7.49,243.92,243.81,6.59]
[1758254987241,7.09,243.81,243.71,10.0386223]
[1758254987534,7.09,243.81,243.71,6.59]
[1758254987727,1.37034783,243.79,243.7,6.59]
[1758254988138,1.37034783,243.77,243.7,6.59]
[1758254988935,0.02730459,243.76,243.7,6.59]
[1758254990740,0.02730459,243.76,243.71,1.37034783]
[1758254991127,0.02730459,243.76,243.72,6.59]
[1758254991327,0.02730459,243.76,243.7,1.37034783]
[1758254991535,0.02730459,243.76,243.7,7.96034783]
[1758254991740,0.02730459,243.76,243.7,6.59]
[1758254999045,0.02730459,243.76,243.7,8.73269677]
[1758254999238,0.02730459,243.76,243.74,6.87]
[1758254999746,0.02730459,243.76,243.73,2.14269677]
[1758254999747,9.08269677,243.92,243.76,6.87]
[1758254999940,9.08269677,243.92,243.79,2.14269677]
[1758255000246,9.08269677,243.92,243.8,6.87]
[1758255000746,9.08269677,243.92,243.79,2.14269677]
[1758255001047,9.08269677,243.92,243.84,0.02874365]
[1758255005355,6.94,243.92,243.84,0.02874365]
[1758255005545,6.94,243.96,243.84,0.02874365]
[1758255006143,6.94,243.96,243.83,9.01269677]
[1758255006343,6.94,243.96,243.88,0.02753096]
[1758255007143,0.71372171,244.01,243.88,0.02753096]
[1758255007144,6.94,243.9,243.88,0.02753096]
[1758255007846,2.14269677,243.91,243.88,0.02753096]
[1758255008142,6.94,243.9,243.88,0.02753096]
[1758255008345,2.14269677,243.91,243.88,0.02753096]
[1758255008940,9.50269677,243.9,243.88,0.02753096]
[1758255009144,9.50269677,243.9,243.77,6.87]
[1758255009344,2.14269677,243.91,243.77,6.87]
[1758255009345,2.14269677,243.84,243.77,6.87]
[1758255009547,2.14269677,243.84,243.72,6.87]
[1758255009749,2.14269677,243.81,243.72,6.87]
[1758255009938,2.14269677,243.81,243.66,3.4486223]
[1758255010139,2.14269677,243.78,243.67,6.87]
[1758255010344,0.0277058,243.76,243.67,6.87]
[1758255011540,2.14269677,243.75,243.67,6.87]
[1758255011943,2.14269677,243.75,243.61,6.87]
[1758255012945,0.03138769,243.7,243.61,9.01269677]
[1758255013746,0.03138769,243.7,243.61,6.87]
[1758255015646,6.94,243.69,243.56,316.93]
[1758255015847,5.30938065,243.68,243.56,6.87]
[1758255016746,5.30938065,243.68,243.57,3.64565495]
[1758255016944,5.30938065,243.68,243.58,3.64565495]
[1758255017141,6.94,243.69,243.59,3.64565495]
[1758255017341,6.94,243.69,243.6,3.64565495]
[1758255017542,6.94,243.69,243.61,3.64565495]
[1758255017748,6.94,243.69,243.62,3.64565495]
[1758255018049,6.94,243.66,243.63,3.64565495]
[1758255018250,6.94,243.66,243.64,3.64477134]
[1758255018444,6.94,243.66,243.65,3.64477134]
[1758255018853,0.02726993,243.67,243.65,3.64477134]
[1758255019050,0.02726993,243.67,243.66,3.64477134]
[1758255020854,0.02726993,243.67,243.66,10.51477134]
[1758255021545,0.02726993,243.67,243.66,3.64477134]
[1758255022351,6.96726993,243.67,243.66,3.64477134]
[1758255023253,0.02726993,243.67,243.66,3.64477134]
[1758255023449,0.02726993,243.67,243.66,10.51477134]
[1758255024153,0.02726993,243.67,243.66,3.64477134]
[1758255024749,0.02726993,243.67,243.66,10.51477134]
[1758255029260,0.02726993,243.67,243.66,3.64477134]
[1758255030456,0.02726993,243.67,243.66,10.42477134]
[1758255031258,0.02726993,243.67,243.66,3.64477134]
[1758255031766,7.13726993,243.67,243.66,3.64477134]
[1758255033256,0.02726993,243.67,243.66,3.64477134]
[1758255035061,7.13726993,243.67,243.66,3.64477134]
[1758255036958,0.02726993,243.67,243.66,3.64477134]
[1758255037269,7.55726993,243.67,243.66,3.64477134]
[1758255039366,7.13726993,243.67,243.66,3.64477134]
[1758255040063,7.55726993,243.67,243.54,23.19622509]
[1758255040267,5.31046607,243.6,243.55,3.66165022]
[1758255040463,5.31046607,243.6,243.54,23.19622509]
[1758255040865,7.11,243.61,243.54,23.19622509]
[1758255041267,0.03044786,243.6,243.54,23.19622509]
[1758255046659,0.03044786,243.6,243.55,6.78]
[1758255046862,0.03044786,243.6,243.54,29.97622509]
[1758255049972,0.03044786,243.6,243.55,6.78]
[1758255052274,0.03044786,243.6,243.57,6.78]
[1758255052477,0.03044786,243.6,243.59,6.78]
[1758255052772,0.03044786,243.6,243.59,10.3705739]
[1758255053474,12.3317034,243.83,243.59,10.3705739]
[1758255053475,7.11,243.74,243.6,6.78]
[1758255053678,5.31046607,243.76,243.62,6.78]
[1758255053867,5.31046607,243.76,243.59,3.693]
[1758255053868,3.17610737,243.76,243.64,6.78]
[1758255054072,3.17610737,243.76,243.65,3.5905739]
[1758255054268,7.11,243.79,243.67,6.78]
[1758255054576,3.17610737,243.78,243.68,3.5905739]
[1758255054873,3.17610737,243.78,243.71,0.03020828]
[1758255055069,3.17610737,243.78,243.72,3.5905739]
[1758255055273,3.17610737,243.78,243.73,3.5905739]
[1758255055574,116.11438573,243.83,243.71,0.03020828]
[1758255055575,7.01,243.77,243.74,3.5905739]
[1758255055773,7.01,243.74,243.71,0.03020828]
[1758255056077,3.17610737,243.75,243.72,3.59962313]
[1758255056376,7.01,243.72,243.7,0.03086748]
[1758255056578,7.01,243.72,243.71,3.60054086]
[1758255056873,7.01,243.72,243.7,0.03086748]
[1758255057778,3.17610737,243.73,243.7,0.03086748]
[1758255057779,10.18610737,243.73,243.7,0.03086748]
[1758255058171,3.17610737,243.73,243.7,6.99086748]
[1758255058665,6.48,243.78,243.7,6.99086748]
[1758255058874,3.17610737,243.76,243.7,6.99086748]
[1758255059076,6.48,243.78,243.7,6.99086748]
[1758255059277,9.65610737,243.78,243.7,6.99086748]
[1758255060181,6.48,243.78,243.7,6.99086748]
[1758255060570,3.17610737,243.75,243.7,0.03086748]
[1758255060776,6.48,243.74,243.7,0.03086748]
[1758255060974,3.17610737,243.75,243.7,0.03086748]
[1758255061170,3.17610737,243.71,243.7,0.03086748]
[1758255061377,9.65610737,243.71,243.7,0.03086748]
[1758255062380,9.65610737,243.71,243.54,23.19622509]
[1758255062381,6.48,243.7,243.54,23.19622509]
[1758255062574,3.17610737,243.6,243.54,23.19622509]
[1758255063077,6.48,243.62,243.54,23.19622509]
[1758255063279,3.17610737,243.61,243.54,23.19622509]
[1758255064081,6.48,243.6,243.54,23.19622509]
[1758255064481,6.48,243.57,243.54,23.19622509]
[1758255064885,3.17610737,243.58,243.54,23.19622509]
[1758255065385,6.48,243.57,243.54,23.19622509]
[1758255065582,3.17610737,243.58,243.54,23.19622509]
[1758255065886,6.48,243.57,243.54,23.19622509]
[1758255066185,3.17610737,243.58,243.54,23.19622509]
[1758255066581,3.17610737,243.58,243.54,30.15622509]
[1758255066884,9.65610737,243.58,243.54,23.19622509]
[1758255067385,3.17610737,243.58,243.54,23.19622509]
[1758255067582,6.48,243.63,243.54,23.19622509]
[1758255067783,3.17610737,243.61,243.55,6.96]
[1758255068586,3.17610737,243.61,243.54,23.19622509]
[1758255069688,11.1,243.64,243.54,23.19622509]
[1758255069689,6.48,243.56,243.54,23.19622509]
[1758255069887,3.17610737,243.57,243.54,23.19622509]
[1758255070086,3.17610737,243.58,243.55,6.96]
[1758255070488,3.17610737,243.58,243.54,23.19622509]
[1758255070790,6.48,243.57,243.54,23.19622509]
[1758255073186,3.17610737,243.6,243.54,23.19622509]
[1758255073384,9.65610737,243.56,243.54,23.19622509]
[1758255073583,3.17610737,243.57,243.54,23.19622509]
[1758255073989,6.48,243.56,243.54,23.19622509]
[1758255074387,6.48,243.55,243.54,23.19622509]
[1758255074587,6.48,243.55,243.46,6.96]
[1758255074894,3.17610737,243.51,243.39,6.96]
[1758255076197,9.65610737,243.55,243.39,6.96]
[1758255079601,6.48,243.55,243.41,6.96]
[1758255080399,3.17610737,243.58,243.41,6.96]
[1758255081800,6.48,243.6,243.42,6.96]
[1758255082201,9.65610737,243.56,243.42,6.96]
[1758255083003,9.65610737,243.52,243.42,6.96]
[1758255087206,6.48,243.52,243.42,6.96]
[1758255087606,3.17610737,243.54,243.42,6.96]
[1758255087907,3.17610737,243.55,243.42,6.96]
[1758255088707,9.65610737,243.56,243.42,6.96]
[1758255089106,6.48,243.56,243.42,6.96]
[1758255089302,3.17610737,243.52,243.42,6.96]
[1758255089502,6.81,243.51,243.42,6.96]
[1758255090304,6.81,243.51,243.34,6.64]
[1758255095413,6.81,243.51,243.35,6.64]
[1758255096715,6.81,243.59,243.38,6.64]
[1758255097116,9.99241944,243.59,243.38,6.64]
[1758255097316,9.99241944,243.59,243.38,10.3362]
[1758255097508,9.99241944,243.59,243.39,6.64]
[1758255097817,6.81,243.59,243.42,6.64]
[1758255098117,6.81,243.55,243.42,6.64]
[1758255098318,6.81,243.51,243.36,6.64]
[1758255098818,9.99241944,243.48,243.36,6.64]
[1758255101722,9.99241944,243.44,243.36,6.64]
[1758255104521,9.99241944,243.44,243.29,6.64]
[1758255104727,3.18241944,243.5,243.29,6.64]
[1758255104728,6.81,243.4,243.29,6.64]
[1758255106028,6.81,243.37,243.29,6.64]
[1758255107430,3.18241944,243.45,243.29,6.64]
[1758255107632,6.81,243.44,243.29,6.64]
[1758255111036,32.61584524,243.53,243.29,6.64]
[1758255111037,6.81,243.48,243.29,3.18241944]
[1758255111239,6.81,243.48,243.31,6.64]
[1758255111535,6.81,243.48,243.32,29.5]
[1758255111737,6.81,243.48,243.33,6.64]
[1758255112731,3.18241944,243.47,243.33,88.24]
[1758255112926,6.81,243.46,243.33,6.64]
[1758255113132,3.18241944,243.4,243.29,6.64]
[1758255113332,3.18241944,243.34,243.23,3.43848892]
[1758255113637,6.81,243.33,243.18,6.64]
[1758255113829,6.81,243.33,243.17,3.43848892]
[1758255114030,6.81,243.29,243.14,6.64]
[1758255114226,3.18241944,243.35,243.15,3.18241944]
[1758255114433,310.66,243.47,243.15,3.18241944]
[1758255114434,6.81,243.31,243.15,3.43848892]
[1758255114729,3.18241944,243.28,243.11,3.43848892]
[1758255115032,3.18241944,243.4,243.0,3.43848892]
[1758255115033,3.18241944,243.17,243.0,3.43848892]
[1758255115228,3.18241944,243.18,243.01,6.64]
[1758255115528,3.18241944,243.18,242.96,6.62090836]
[1758255115529,3.18241944,243.08,242.96,0.71601992]
[1758255115734,6.81,243.11,242.95,6.64]
[1758255115928,5.33802547,243.08,242.87,10.13848892]
[1758255116135,6.49,243.07,242.87,6.7]
[1758255116331,6.49,243.07,242.83,0.71637367]
[1758255116631,6.49,243.03,242.85,5.33802547]
[1758255116826,6.49,243.12,242.91,6.7]
[1758255117029,5.33802547,243.24,242.9,5.33802547]
[1758255117030,5.33802547,243.18,242.95,57.5983]
[1758255117226,5.33802547,243.18,242.9,57.6099]
[1758255117227,5.33802547,243.15,242.96,6.7]
[1758255117429,11.82802547,243.15,242.96,6.7]
[1758255117629,6.49,243.15,242.96,6.7]
[1758255117932,6.49,243.15,242.98,6.7]
[1758255118132,0.02619901,243.08,242.98,6.7]
[1758255118833,0.02619901,243.08,243.0,6.85]
[1758255119235,0.02619901,243.08,243.02,6.85]
[1758255119429,7.08,243.29,243.06,6.85]
[1758255119630,7.08,243.29,243.07,109.26]
[1758255119836,7.08,243.29,243.08,6.85]
[1758255120137,7.08,243.29,243.1,6.85]
[1758255120337,7.08,243.29,243.1,83.47]
[1758255120533,7.08,243.29,243.11,64.4101]
[1758255120733,7.08,243.36,243.18,6.85]
[1758255120932,7.08,243.36,243.19,64.14]
[1758255121132,7.08,243.36,243.2,6.85]
[1758255121435,7.08,243.42,243.26,6.85]
[1758255121635,73.94,243.49,243.26,6.85]
[1758255121636,7.08,243.48,243.26,6.85]
[1758255121932,7.08,243.48,243.27,109.3]
[1758255122235,7.08,243.48,243.35,0.03038568]
[1758255122435,7.08,243.43,243.35,0.03038568]
[1758255122638,5.33802547,243.42,243.35,0.03038568]
[1758255122837,7.08,243.41,243.35,0.03038568]
[1758255124038,5.33802547,243.4,243.35,0.03038568]
[1758255124232,7.08,243.39,243.35,0.03038568]
[1758255124436,7.5,243.39,243.2,6.85]
[1758255124631,5.33802547,243.35,243.2,6.85]
[1758255124836,7.08,243.29,243.14,6.85]
[1758255126035,0.02736245,243.24,243.14,6.85]
[1758255127434,7.10736245,243.24,243.04,6.85]
[1758255127633,7.10736245,243.24,243.05,88.4]
[1758255127838,7.10736245,243.24,243.06,6.85]
[1758255127839,7.08,243.24,243.06,6.85]
[1758255128435,7.08,243.24,243.07,109.2]
[1758255128436,0.02636442,243.17,243.07,109.2]
[1758255128637,0.02636442,243.17,243.08,6.85]
[1758255128940,0.02636442,243.17,243.09,109.14]
[1758255129440,0.02636442,243.17,243.1,6.85]
[1758255130234,0.02636442,243.17,243.12,6.85]
[1758255130636,0.02636442,243.17,243.13,0.42]
[1758255130837,0.02636442,243.17,243.14,109.04]
[1758255131444,0.02636442,243.17,243.09,6.85]
[1758255131835,7.08,243.24,243.09,6.85]
[1758255132341,7.08,243.2,243.02,310.78]
[1758255132541,7.08,243.2,243.03,6.85]
[1758255133037,0.02688095,243.14,243.03,12.18802547]
[1758255133346,0.02688095,243.14,243.04,6.85]
[1758255133640,0.02688095,243.14,243.06,6.85]
[1758255133841,0.02688095,243.14,243.07,109.1]
[1758255134444,0.02688095,243.14,243.08,109.06]
[1758255134638,0.02688095,243.14,243.1,6.85]
[1758255134834,0.02688095,243.14,243.11,115.89]
[1758255135038,0.02688095,243.14,243.11,109.04]
[1758255135538,0.02688095,243.14,243.08,109.02]
[1758255135733,0.02688095,243.14,243.02,310.78]
[1758255136245,0.02688095,243.14,243.03,108.98]
[1758255136740,0.02688095,243.14,243.02,310.78]
[1758255137045,0.02688095,243.14,243.05,6.85]
[1758255137443,0.02688095,243.14,243.06,108.88]
[1758255137641,0.02688095,243.14,243.05,6.85]